bitfinex-derivatives/quotes_ETHF0:USTF0_20250411
["timestamp","ask_amount","ask_price","bid_price","bid_amount"]
[1744383912707,1.28546,1556.6,1556.5,7.51983297]
[1744383912910,1.28546,1556.6,1556.5,4.31203297]
[1744383913101,6.28666,1556.6,1556.5,4.31203297]
[1744383913405,6.28666,1556.6,1556.5,7.51983297]
[1744383914209,6.28666,1556.6,1556.5,0.00963297]
[1744383915200,0.00963297,1556.7,1556.5,3.21743297]
[1744383915610,0.00963297,1556.7,1556.5,8.70925297]
[1744383915907,0.00963297,1556.7,1556.5,8.70923297]
[1744383916099,0.00963297,1556.7,1556.6,1.28546]
[1744383916299,1.28511,1557.1,1556.8,1.28524]
[1744383916499,1.28511,1557.1,1556.9,3.2078]
[1744383916710,1.28497,1557.2,1556.9,3.2078]
[1744383916910,1.28508,1557.1,1556.9,3.2078]
[1744383917106,1.28513,1557.0,1556.9,3.2078]
[1744383917908,1.28527,1556.9,1556.8,3.2078]
[1744383918105,3.21305,1556.9,1556.5,0.00963297]
[1744383918412,1.28546,1556.6,1556.5,0.00963297]
[1744383919311,6.00216,1556.6,1556.5,0.00963297]
[1744383919511,6.00216,1556.6,1556.5,3.21743297]
[1744383920112,1.28546,1556.6,1556.5,3.21743297]
[1744383920812,1.28546,1556.6,1556.5,0.00963297]
[1744383921203,6.25446,1556.6,1556.5,0.00963297]
[1744383923912,11.25446,1556.6,1556.5,2.97e-06]
[1744383924102,13.86716,1556.6,1556.5,2.97e-06]
[1744383924406,23.00696,1556.6,1556.5,2.97e-06]
[1744383924612,27.21206,1556.6,1556.5,2.97e-06]
[1744383924812,1.28596,1556.0,1555.9,11.6343]
[1744383925012,1.28612,1555.8,1555.7,13.25406675]
[1744383925403,1.28612,1555.8,1555.7,15.04626675]
[1744383925712,1.28612,1555.8,1555.7,10.04626675]
[1744383926301,1.29573297,1555.9,1555.7,10.04626675]
[1744383926504,1.28612,1555.8,1555.7,10.04626675]
[1744383927304,6.28612,1555.8,1555.7,10.04626675]
[1744383927509,11.27282,1555.8,1555.7,10.04626675]
[1744383927910,1.28621,1555.7,1555.6,0.00963297]
[1744383928210,12.20491,1555.7,1555.6,0.00963297]
[1744383928418,17.20491,1555.7,1555.6,0.00963297]
[1744383929913,12.20491,1555.7,1555.6,0.00963297]
[1744383930614,17.20491,1555.7,1555.6,0.00963297]
[1744383931911,12.20491,1555.7,1555.6,0.00963297]
[1744383932110,5.932,1555.7,1555.6,0.00963297]
[1744383932415,7.21821,1555.7,1555.6,0.00963297]
[1744383935209,1.28621,1555.7,1555.6,0.00963297]
[1744383936512,1.28617,1555.8,1555.6,8.21743297]
[1744383936805,1.28617,1555.8,1555.7,4.6785]
[1744383937311,0.00963297,1555.9,1555.8,1.28612]
[1744383937509,0.00963297,1555.9,1555.8,7.3833]
[1744383937704,0.00963297,1555.9,1555.8,12.3833]
[1744383938014,1.29567297,1555.9,1555.8,7.3833]
[1744383938410,7.39867297,1555.9,1555.8,3.2078]
[1744383938819,1.28636,1555.6,1555.3,7.5199]
[1744383939020,6.103,1555.5,1555.3,11.7216]
[1744383939221,6.103,1555.5,1555.4,1.28646]
[1744383939417,4.857,1555.8,1555.3,19.93793]
[1744383939622,6.11263297,1555.9,1555.7,1.28618]
[1744383939916,0.00963297,1555.9,1555.8,1.28612]
[1744383940115,0.00963297,1555.9,1555.8,9.79992]
[1744383940323,0.00963297,1555.9,1555.8,13.5138]
[1744383940617,0.00963297,1555.9,1555.8,8.5138]
[1744383941122,7.39867297,1555.9,1555.8,8.5138]
[1744383941322,6.11263297,1555.9,1555.8,8.5138]
[1744383941827,6.11263297,1555.9,1555.8,9.79992]
[1744383942126,0.00963297,1555.9,1555.8,14.79992]
[1744383943017,0.00963297,1555.9,1555.8,8.5138]
[1744383943224,1.29567297,1555.9,1555.8,8.5138]
[1744383944028,6.12567297,1555.9,1555.8,8.5138]
[1744383944219,1.29567297,1555.9,1555.8,8.5138]
[1744383944420,0.00963297,1555.9,1555.8,8.5138]
[1744383945524,1.29567297,1555.9,1555.8,8.5138]
[1744383945927,1.28612,1555.8,1555.7,8.3411]
[1744383946224,6.14392297,1555.9,1555.7,8.3411]
[1744383946623,1.28612,1555.8,1555.7,8.3411]
[1744383946827,6.14394297,1555.9,1555.7,8.3411]
[1744383947338,0.00963297,1555.9,1555.7,9.62724]
[1744383947530,0.00963297,1555.9,1555.8,4.2226]
[1744383948621,1.29567297,1555.9,1555.8,4.2226]
[1744383948825,0.00963297,1555.9,1555.8,5.50872]
[1744383949130,1.29567297,1555.9,1555.8,4.2226]
[1744383949431,0.00963297,1555.9,1555.8,4.2226]
[1744383949924,0.00963297,1555.9,1555.8,8.71652]
[1744383950229,0.00963297,1555.9,1555.8,4.2226]
[1744383950624,0.00963297,1555.9,1555.8,5.50872]
[1744383950819,1.29567297,1555.9,1555.8,4.2226]
[1744383951024,0.00963297,1555.9,1555.8,4.2226]
[1744383951832,1.29567297,1555.9,1555.8,4.2226]
[1744383952233,0.00963297,1555.9,1555.8,4.2226]
[1744383952532,0.00963297,1555.9,1555.8,8.71652]
[1744383952729,1.29567297,1555.9,1555.8,7.4304]
[1744383952932,0.00963297,1555.9,1555.8,8.71652]
[1744383953626,1.29567297,1555.9,1555.8,7.4304]
[1744383955332,0.00963297,1555.9,1555.8,7.4304]
[1744383955935,1.29567297,1555.9,1555.8,7.4304]
[1744383956139,1.29567297,1555.9,1555.8,4.2226]
[1744383958739,0.00963297,1555.9,1555.8,4.2226]
[1744383959241,0.00963297,1555.9,1555.8,5.50872]
[1744383959741,1.29567297,1555.9,1555.8,4.2226]
[1744383960237,1.28612,1555.8,1555.7,5.1333]
[1744383960535,1.28621,1555.7,1555.6,0.00963297]
[1744383961638,0.00963297,1555.9,1555.6,11.43313297]
[1744383961843,6.42151,1556.6,1556.0,3.21491]
[1744383962139,6.36109,1556.5,1556.3,1.2857]
[1744383962346,1.28559,1556.5,1556.4,4.8207]
[1744383962643,14.22778,1556.7,1556.4,4.8207]
[1744383962833,1.28555,1556.5,1556.4,4.8207]
[1744383963038,1.28555,1556.5,1556.4,4.83033297]
[1744383963635,4.93393297,1556.7,1556.4,8.03813297]
[1744383963943,0.00963297,1556.7,1556.6,4.49326]
[1744383964243,0.00963297,1556.7,1556.6,13.58536]
[1744383964434,6.20938,1557.1,1556.8,1.28522]
[1744383964635,1.28513,1557.0,1556.9,4.8207]
[1744383964841,1.28513,1557.0,1556.6,4.2714]
[1744383964842,9.2968,1557.0,1556.6,4.2714]
[1744383965046,1.28533,1556.8,1556.6,9.0921]
[1744383965239,1.28533,1556.8,1556.7,4.9793]
[1744383965445,8.14710297,1556.9,1556.4,4.21963297]
[1744383965744,1.28555,1556.5,1556.4,4.21963297]
[1744383966140,1.28546,1556.6,1556.4,9.19893297]
[1744383966340,6.29125,1556.5,1556.4,9.19893297]
[1744383966750,1.28543,1556.7,1556.4,10.48453297]
[1744383966937,6.29113,1556.7,1556.4,10.48453297]
[1744383967244,6.29113,1556.7,1556.4,9.19893297]
[1744383967245,5.0057,1556.7,1556.4,9.19893297]
[1744383967443,1.2855,1556.6,1556.4,9.19893297]
[1744383967646,5.0057,1556.5,1556.4,10.48456297]
[1744383967838,10.58213,1556.8,1556.5,1.28551]
[1744383968141,0.00963297,1556.9,1556.8,1.2853]
[1744383968639,0.00963297,1556.9,1556.8,13.3724]
[1744383969237,6.33395297,1556.9,1556.8,4.1508]
[1744383970244,5.04873297,1556.9,1556.8,4.1508]
[1744383970444,6.33395297,1556.9,1556.8,8.945]
[1744383970743,5.04873297,1556.9,1556.8,8.945]
[1744383970949,6.33395297,1556.9,1556.8,8.945]
[1744383971945,1.28537,1556.8,1556.5,15.0087]
[1744383972136,1.28538,1556.7,1556.6,4.9243]
[1744383972641,4.8883,1556.8,1556.6,6.20973]
[1744383972942,4.8883,1556.8,1556.6,4.9243]
[1744383973350,6.42138,1556.7,1556.4,0.00963297]
[1744383973554,1.28555,1556.5,1556.4,0.00963297]
[1744383974243,12.37255,1556.5,1556.4,0.00963297]
[1744383974452,6.17382,1556.6,1556.4,0.00963297]
[1744383974848,6.087,1556.8,1556.6,1.28546]
[1744383975045,4.7123,1556.8,1556.6,1.28546]
[1744383975351,1.29492297,1556.9,1556.7,6.34147]
[1744383975552,1.2853,1556.8,1556.7,5.0561]
[1744383975749,1.28538,1556.7,1556.6,4.1008]
[1744383975944,1.28555,1556.5,1556.4,0.00963297]
[1744383976446,4.7123,1556.7,1556.5,1.28551]
[1744383976649,4.7123,1556.7,1556.6,5.0561]
[1744383976951,6.087,1556.8,1556.6,5.0561]
[1744383977149,4.72193297,1556.9,1556.8,1.2853]
[1744383977343,0.00963297,1556.9,1556.8,1.2853]
[1744383977742,0.00963297,1556.9,1556.6,8.2639]
[1744383977950,0.00963297,1556.9,1556.8,1.2853]
[1744383978145,0.00963297,1556.9,1556.7,6.07461]
[1744383978340,0.00963297,1556.9,1556.7,4.7893]
[1744383978541,1.29491297,1556.9,1556.7,4.7893]
[1744383978749,1.29491297,1556.9,1556.7,6.07466]
[1744383979148,0.00963297,1556.9,1556.7,4.7893]
[1744383979950,0.00963297,1556.9,1556.8,4.4931]
[1744383980952,1.29485297,1556.9,1556.8,4.4931]
[1744383981146,0.00963297,1556.9,1556.8,4.4931]
[1744383981648,0.00963297,1556.9,1556.8,9.4931]
[1744383981952,1.28477,1557.5,1557.3,1.2848]
[1744383982141,4.6985,1557.9,1557.4,13.3171]
[1744383982343,3.21163,1557.6,1557.1,3.2078]
[1744383982647,3.21181,1557.5,1557.1,4.47975921]
[1744383982849,0.00642205,1557.5,1557.3,6.42]
[1744383983039,1.28449,1557.8,1557.4,13.3171]
[1744383983241,7.21639,1557.9,1557.8,0.01305079]
[1744383983453,1.28439,1557.9,1557.8,0.01305079]
[1744383983648,1.28456,1557.7,1557.6,4.7084]
[1744383983947,1.27150921,1557.7,1557.6,4.7084]
[1744383984458,3.21095,1558.0,1557.6,5.99303]
[1744383984657,1.2845,1557.8,1557.6,4.7084]
[1744383984952,1.2845,1557.8,1557.6,5.99303]
[1744383985252,1.28446,1557.9,1557.6,5.99303]
[1744383985448,1.28433,1558.0,1557.7,4.7084]
[1744383985652,5.0093,1558.0,1557.8,1.28442]
[1744383985954,5.0093,1558.0,1557.7,7.9162]
[1744383986344,1.28444,1557.9,1557.7,7.9162]
[1744383986546,5.0093,1558.0,1557.7,7.9162]
[1744383986750,4.492,1558.2,1557.7,7.9162]
[1744383986943,4.7892,1558.1,1558.0,1.28431]
[1744383987143,4.7892,1558.1,1557.9,9.2294]
[1744383987347,6.07345,1558.1,1557.9,9.23903297]
[1744383987549,6.07345,1558.1,1557.9,10.52342297]
[1744383987743,6.07345,1558.1,1557.9,9.23903297]
[1744383987744,1.28431,1558.0,1557.9,9.23903297]
[1744383988051,4.7892,1558.0,1557.9,0.00963297]
[1744383988448,6.07351,1558.0,1557.9,0.00963297]
[1744383988954,1.28424,1558.1,1557.9,1.29400297]
[1744383989150,6.07343,1558.1,1558.0,5.0272]
[1744383989358,1.28431,1558.0,1557.9,0.00963297]
[1744383989557,6.07351,1558.0,1557.9,0.00963297]
[1744383990054,20.35131,1558.0,1557.9,0.00963297]
[1744383990748,17.14351,1558.0,1557.9,0.00963297]
[1744383990954,12.14351,1558.0,1557.9,0.00963297]
[1744383991545,12.14351,1558.0,1557.9,1e-08]
[1744383991546,20.35131,1558.0,1557.9,1e-08]
[1744383991852,1.28489,1557.3,1557.2,4.2907]
[1744383992147,1.28487,1557.4,1557.2,4.27764921]
[1744383992352,4.9492,1557.4,1557.1,4.7435]
[1744383992550,4.9492,1557.4,1557.0,6.02862]
[1744383992755,1.28501,1557.2,1557.1,3.2078]
[1744383993058,1.28501,1557.2,1557.0,4.75313297]
[1744383993655,4.95883296,1557.4,1557.0,6.03826297]
[1744383993854,4.95883296,1557.4,1557.0,4.75313297]
[1744383994155,1.28499,1557.2,1557.0,4.75313297]
[1744383994356,1.28499,1557.2,1557.0,6.03826297]
[1744383994552,4.95883296,1557.4,1557.0,6.03826297]
[1744383994752,1.28497,1557.2,1557.0,6.03826297]
[1744383994952,1.28489,1557.3,1557.1,4.49284]
[1744383995147,4.95883296,1557.4,1557.2,5.2029]
[1744383995460,0.00963296,1557.4,1557.2,6.48782]
[1744383995656,0.00963296,1557.4,1557.3,7.5628]
[1744383995860,0.00963296,1557.4,1557.3,8.84769]
[1744383996055,10.51702724,1557.9,1557.3,8.84769]
[1744383996056,1.28445,1557.9,1557.7,1.28452]
[1744383996255,1.28436,1558.0,1557.9,0.01305079]
[1744383996658,1.27133921,1557.9,1557.8,4.8077]
[1744383996955,1.28439,1557.9,1557.8,4.8077]
[1744383997558,5.0678,1558.1,1557.8,6.09215]
[1744383997749,1.28436,1558.0,1557.8,4.8077]
[1744383998055,1.28431,1558.0,1557.9,4.8077]
[1744383999751,1.28429,1558.1,1557.9,9.29988]
[1744383999948,1.28429,1558.1,1557.9,8.0155]
[1744384000155,1.28431,1558.0,1557.9,8.0155]
[1744384000364,1.28429,1558.1,1557.9,8.0155]
[1744384000565,1.28431,1558.0,1557.9,8.0155]
[1744384001463,6.40255,1558.1,1557.9,9.29988]
[1744384001858,95.47152,1558.6,1557.9,11.22642]
[1744384002058,1.28403,1558.4,1558.2,3.2078]
[1744384002259,3.20995,1558.4,1558.0,3.2078]
[1744384002459,1.2842,1558.2,1558.0,3.2078]
[1744384002660,1.2842,1558.2,1558.0,9.32229]
[1744384002860,1.28418,1558.2,1558.0,9.32227]
[1744384003057,101.54036,1558.6,1558.0,9.32227]
[1744384003058,1.28423,1558.1,1558.0,8.038]
[1744384006158,3.20982,1558.5,1558.1,1.28423]
[1744384006364,1.28406,1558.4,1558.2,9.23973]
[1744384006564,1.28406,1558.4,1558.3,4.7478]
[1744384006866,5.058,1558.5,1558.3,4.7478]
[1744384006867,1.28398,1558.5,1558.3,10.05004]
[1744384007062,1.28398,1558.4,1558.3,4.0182]
[1744384007258,3.2078,1558.4,1557.8,3.2078]
[1744384007466,1.28443,1557.9,1557.8,7.9556]
[1744384007664,1.28443,1557.9,1557.8,3.2078]
[1744384007860,3.21064,1558.1,1557.7,4.02783297]
[1744384008066,1.28447,1557.8,1557.7,0.00963297]
[1744384008268,15.55927,1557.8,1557.7,0.00963297]
[1744384008572,15.55927,1557.8,1557.1,1.285]
[1744384008573,3.21175,1557.6,1556.9,21.1652099]
[1744384008774,1.28497,1557.2,1557.1,5.10574921]
[1744384009270,1.28505,1557.1,1556.9,23.4789099]
[1744384009472,6.41075,1557.1,1556.9,23.4789099]
[1744384009666,6.41075,1557.1,1556.9,23.48854287]
[1744384010169,5.1257,1557.1,1556.9,23.48854287]
[1744384010365,0.00963297,1557.2,1557.0,14.53919675]
[1744384010563,0.00963297,1557.2,1557.0,13.25406675]
[1744384010765,0.00963297,1557.2,1557.1,1.28505]
[1744384011171,0.00963297,1557.2,1557.1,6.28505]
[1744384011771,1.29460297,1557.2,1557.1,5.0]
[1744384011977,1.29460297,1557.2,1557.0,3.2078]
[1744384011978,1.28505,1557.1,1557.0,3.2078]
[1744384012281,1.28505,1557.1,1557.0,8.1091]
[1744384012575,1.28505,1557.1,1557.0,4.9013]
[1744384013078,0.00963297,1557.2,1557.1,1.28505]
[1744384013479,0.00963297,1557.2,1557.0,8.1091]
[1744384013672,1.29463297,1557.2,1557.0,8.1091]
[1744384013976,1.28505,1557.1,1557.0,8.1091]
[1744384014173,1.28505,1557.1,1557.0,4.9013]
[1744384014370,1.28513,1557.0,1556.9,8.39033297]
[1744384014679,1.28513,1557.0,1556.9,0.00963297]
[1744384018881,1.28513,1557.0,1556.9,3.21743297]
[1744384019077,0.00963297,1557.2,1556.9,4.50258297]
[1744384019384,1.28505,1557.1,1557.0,5.0098]
[1744384019683,0.00963297,1557.2,1557.0,5.0098]
[1744384019871,1.29464297,1557.2,1557.0,5.0098]
[1744384020075,1.28505,1557.1,1557.0,5.0098]
[1744384020586,4.7743,1557.1,1557.0,5.0098]
[1744384020771,0.00963297,1557.2,1557.0,5.0098]
[1744384021275,1.28513,1557.0,1556.9,3.21743297]
[1744384021479,1.28513,1557.0,1556.9,0.00963297]
[1744384022082,6.05943,1557.0,1556.9,0.00963297]
[1744384022276,4.7743,1557.0,1556.9,0.00963297]
[1744384022481,1.28513,1557.0,1556.9,3.21743297]
[1744384022883,1.28513,1557.0,1556.9,0.00963297]
[1744384023387,0.00963297,1557.2,1556.9,8.21743297]
[1744384023585,1.29460297,1557.2,1557.1,3.2078]
[1744384023782,1.28505,1557.1,1557.0,4.9535]
[1744384024083,1.28505,1557.1,1556.9,3.21743297]
[1744384024084,1.28513,1557.0,1556.9,3.21743297]
[1744384024290,1.28513,1557.0,1556.9,8.17093297]
[1744384024488,1.28513,1557.0,1556.9,4.96313297]
[1744384024690,5.0634,1557.1,1556.9,4.96313297]
[1744384024984,1.28513,1557.0,1556.9,4.96313297]
[1744384026479,1.28513,1557.0,1556.9,0.00963297]
[1744384027077,6.28513,1557.0,1556.9,0.00963297]
[1744384027282,1.28546,1556.6,1556.5,5.107]
[1744384027580,6.42684,1556.8,1556.4,8.2997]
[1744384027581,1.28555,1556.5,1556.4,8.2997]
[1744384027781,6.31985,1556.5,1556.4,8.2997]
[1744384028081,6.31985,1556.5,1556.4,4.3019]
[1744384028280,1.28563,1556.4,1556.3,8.32443297]
[1744384028489,6.31993,1556.4,1556.3,0.00963297]
[1744384030385,14.52773,1556.4,1556.3,0.00963297]
[1744384030887,1.28579,1556.2,1556.1,10.04626675]
[1744384031090,7.34279,1556.2,1556.1,10.04626675]
[1744384031284,7.34279,1556.2,1555.9,7.9592]
[1744384031285,1.28589,1556.1,1555.9,7.9592]
[1744384031488,1.28596,1556.0,1555.9,7.9592]
[1744384031688,1.28596,1556.0,1555.9,4.7514]
[1744384031985,6.08505297,1556.1,1555.9,7.9592]
[1744384032190,0.00963297,1556.1,1555.9,9.24522]
[1744384032691,1.29552297,1556.1,1555.9,9.24522]
[1744384033083,1.29556297,1556.1,1555.9,7.9592]
[1744384033285,0.00963297,1556.1,1555.9,9.24517]
[1744384033485,0.00963297,1556.1,1555.9,7.9592]
[1744384033686,1.28596,1556.0,1555.9,7.9592]
[1744384034092,1.28604,1555.9,1555.8,8.15183297]
[1744384034282,1.28604,1555.9,1555.8,4.02003297]
[1744384034283,6.05254,1555.9,1555.8,4.02003297]
[1744384034484,6.05254,1555.9,1555.8,0.00963297]
[1744384034698,12.11154,1555.9,1555.8,0.00963297]
[1744384035095,1.28637,1555.5,1555.4,10.04626675]
[1744384035396,1.28637,1555.5,1555.0,18.52046675]
[1744384035397,1.2867,1555.1,1555.0,18.52046675]
[1744384035897,7.34566,1555.2,1555.0,26.85266675]
[1744384036096,6.059,1555.2,1555.0,26.85266675]
[1744384036300,7.34565,1555.2,1555.0,26.85266675]
[1744384036485,1.28665,1555.2,1555.0,26.85266675]
[1744384036892,4.73183297,1555.3,1555.0,26.85266675]
[1744384037189,0.00963297,1555.3,1555.2,4.49442]
[1744384037585,0.00963297,1555.3,1555.2,9.49442]
[1744384038401,0.00963297,1555.3,1555.2,14.61892]
[1744384038993,1.29617297,1555.3,1555.2,13.3323]
[1744384039194,1.29617297,1555.3,1555.2,8.3323]
[1744384039599,0.00963297,1555.3,1555.2,14.61892]
[1744384039803,1.29617297,1555.3,1555.2,8.3323]
[1744384040193,1.2867,1555.1,1555.0,8.4742]
[1744384040396,1.28679,1555.0,1554.9,3.21743297]
[1744384040796,1.28679,1555.0,1554.9,0.00963297]
[1744384041198,6.28679,1555.0,1554.9,8.92e-06]
[1744384041707,10.97899,1555.0,1554.9,8.92e-06]
[1744384041905,5.97899,1555.0,1554.9,8.92e-06]
[1744384043202,10.97899,1555.0,1554.9,8.92e-06]
[1744384043394,14.18679,1555.0,1554.9,8.92e-06]
[1744384043597,10.97899,1555.0,1554.9,8.92e-06]
[1744384044306,14.18679,1555.0,1554.9,8.92e-06]
[1744384049611,1.28712,1554.6,1554.5,3.2078]
[1744384049798,3.21801,1554.5,1554.1,3.2078]
[1744384050110,1.28738,1554.3,1554.1,4.49532]
[1744384050298,1.28738,1554.3,1554.2,4.6744]
[1744384050812,7.34795297,1554.4,1554.2,5.96184]
[1744384051004,7.34795297,1554.4,1554.2,9.97484]
[1744384051202,0.00963297,1554.4,1554.3,5.96177]
[1744384051505,1.29691297,1554.4,1554.3,4.6744]
[1744384051809,0.00963297,1554.4,1554.3,9.16957]
[1744384052012,0.00963297,1554.4,1554.3,7.8822]
[1744384052404,1.29691297,1554.4,1554.3,7.8822]
[1744384052606,1.29691297,1554.4,1554.3,4.6744]
[1744384052815,0.00963297,1554.4,1554.3,7.8822]
[1744384053011,0.00963297,1554.4,1554.3,14.16957]
[1744384053900,1.29691297,1554.4,1554.3,4.6744]
[1744384054907,0.00963297,1554.4,1554.3,14.16957]
[1744384057019,9.26927,1554.9,1554.4,3.21819]
[1744384057225,1.28703,1554.7,1554.6,3.2078]
[1744384057521,1.28703,1554.7,1554.6,4.49492]
[1744384057713,1.28703,1554.7,1554.6,3.2078]
[1744384058014,1.28703,1554.7,1554.6,4.49492]
[1744384058419,1.28703,1554.7,1554.6,4.49486]
[1744384058716,0.00963297,1554.8,1554.7,1.28703]
[1744384059013,1.29658297,1554.8,1554.7,4.1429]
[1744384059720,0.00963297,1554.8,1554.7,10.42993]
[1744384060112,1.28677,1555.1,1555.0,1.28679]
[1744384060320,1.28667,1555.2,1555.1,1.2867]
[1744384060521,5.0238,1555.3,1555.0,1.28673]
[1744384060820,5.0238,1555.3,1554.9,3.2078]
[1744384061022,1.28667,1555.2,1555.0,1.28672]
[1744384061223,0.00963297,1555.3,1555.1,7.289]
[1744384061521,0.00963297,1555.3,1555.2,1.28662]
[1744384062020,0.50621823,1556.0,1555.4,3.216]
[1744384062229,1.28614,1555.8,1555.6,4.49403]
[1744384062417,3.21539,1555.8,1555.4,3.2078]
[1744384062615,1.28637,1555.5,1555.4,3.2078]
[1744384062817,1.28631,1555.6,1555.4,3.2078]
[1744384063122,1.28637,1555.5,1555.3,1.2865]
[1744384063311,1.28633,1555.6,1555.4,1.28642]
[1744384063515,6.40903,1555.6,1555.4,1.28642]
[1744384063717,1.28639,1555.5,1555.3,1.28648]
[1744384064124,1.28646,1555.4,1555.3,1.28648]
[1744384064318,1.28654,1555.3,1555.2,3.2078]
[1744384064622,1.28654,1555.3,1555.2,4.49442]
[1744384065016,6.4092,1555.4,1555.2,4.49442]
[1744384065321,0.00963297,1555.7,1555.2,7.3389]
[1744384065523,1.28634,1555.6,1555.4,4.4942]
[1744384065826,0.00963297,1555.7,1555.6,1.28629]
[1744384066025,1.29584297,1555.7,1555.6,4.49409]
[1744384066216,0.00963297,1555.7,1555.6,4.49409]
[1744384066726,0.00963297,1555.7,1555.6,9.49409]
[1744384067617,0.00963297,1555.7,1555.6,4.49409]
[1744384068224,0.00963297,1555.7,1555.6,3.2078]
[1744384068524,0.00963297,1555.7,1555.6,4.49409]
[1744384068717,0.00963297,1555.7,1555.6,3.2078]
[1744384068923,1.29584297,1555.7,1555.6,3.2078]
[1744384069121,1.29584297,1555.7,1555.6,9.27429]
[1744384069320,0.00963297,1555.7,1555.6,9.27429]
[1744384069923,1.29584297,1555.7,1555.6,7.988]
[1744384070319,0.00963297,1555.7,1555.6,9.27429]
[1744384072727,0.00963297,1555.7,1555.6,4.49409]
[1744384073024,0.00963297,1555.7,1555.6,9.33789]
[1744384073225,1.29584297,1555.7,1555.6,8.0516]
[1744384073417,5.99434297,1555.7,1555.6,9.33789]
[1744384073619,0.00963297,1555.7,1555.6,9.33789]
[1744384073820,0.00963297,1555.7,1555.6,13.68829]
[1744384075130,1.29584297,1555.7,1555.6,12.402]
[1744384075337,6.11544297,1555.7,1555.6,12.402]
[1744384075527,6.11544297,1555.7,1555.6,9.1942]
[1744384076421,6.11544297,1555.7,1555.6,4.3504]
[1744384076729,1.28629,1555.6,1555.5,8.8749]
[1744384076927,6.10589,1555.6,1555.5,8.8749]
[1744384078331,1.29591297,1555.7,1555.5,10.16127]
[1744384078524,1.28629,1555.6,1555.5,8.8749]
[1744384078722,6.03779,1555.6,1555.5,8.8749]
[1744384079418,0.00963297,1555.7,1555.5,8.8749]
[1744384079623,0.00963297,1555.7,1555.6,9.21989]
[1744384080025,0.00963297,1555.7,1555.6,7.9336]
[1744384080331,0.00963297,1555.7,1555.6,6.01209]
[1744384080523,1.29584297,1555.7,1555.6,7.9336]
[1744384080830,1.28637,1555.5,1555.4,3.2078]
[1744384081029,13.10065297,1555.7,1555.6,1.28629]
[1744384081030,0.00963297,1555.7,1555.6,1.28629]
[1744384081234,1.29584297,1555.7,1555.6,4.49409]
[1744384081534,1.29584297,1555.7,1555.6,3.2078]
[1744384081831,1.29584297,1555.7,1555.6,4.49409]
[1744384082136,1.29584297,1555.7,1555.6,9.38749]
[1744384082336,0.00963297,1555.7,1555.6,9.38749]
[1744384082536,1.29584297,1555.7,1555.6,9.38749]
[1744384083336,1.29584297,1555.7,1555.6,8.1012]
[1744384084334,1.28637,1555.5,1555.4,7.4496]
[1744384084533,1.28637,1555.5,1555.4,3.2078]
[1744384086130,6.14337,1555.5,1555.4,3.2078]
[1744384086529,4.857,1555.5,1555.4,3.2078]
[1744384086734,1.28635,1555.6,1555.4,3.2078]
[1744384087035,6.13545,1555.6,1555.4,4.49422]
[1744384087239,4.8491,1555.6,1555.3,4.9019]
[1744384087536,0.00963297,1555.7,1555.6,1.28629]
[1744384087735,0.50702809,1556.3,1556.2,1.28579]
[1744384088041,2.04861,1556.5,1556.1,3.2078]
[1744384088229,2.04861,1556.5,1556.2,12.9045]
[1744384088436,1.28579,1556.2,1556.1,3.2078]
[1744384088636,4.8491,1556.4,1556.1,3.2078]
[1744384088831,1.28575,1556.3,1556.1,3.21743297]
[1744384089036,4.8491,1556.2,1556.1,3.21743297]
[1744384089342,1.28571,1556.3,1556.1,4.50327297]
[1744384089544,4.8491,1556.3,1556.2,4.9019]
[1744384089841,0.00963297,1556.4,1556.3,1.28571]
[1744384090033,0.00963297,1556.4,1556.3,4.49351]
[1744384090234,0.00963297,1556.4,1556.3,3.2078]
[1744384090435,0.00963297,1556.4,1556.3,5.91571]
[1744384090731,0.00963297,1556.4,1556.3,9.12351]
[1744384091240,2.04861,1556.5,1556.4,1.28563]
[1744384091438,3.33416,1556.5,1556.4,4.63]
[1744384091635,1.28563,1556.4,1556.3,3.2078]
[1744384091943,5.90343,1556.4,1556.3,3.2078]
[1744384092440,4.6178,1556.4,1556.3,3.2078]
[1744384092633,2.04861,1556.5,1556.4,1.28563]
[1744384092836,2.04861,1556.5,1556.4,6.37323]
[1744384093438,3.33416,1556.5,1556.4,5.0876]
[1744384093844,1.28563,1556.4,1556.3,3.2078]
[1744384094044,2.04861,1556.5,1556.4,1.28563]
[1744384094240,3.2078,1557.5,1556.9,1.28516]
[1744384094436,1.28505,1557.1,1557.0,5.0876]
[1744384094639,1.28505,1557.1,1557.0,5.09723297]
[1744384095140,1.28505,1557.1,1557.0,0.00963297]
[1744384097346,1.28502,1557.2,1557.0,0.00963297]
[1744384097545,7.31695,1557.3,1557.0,0.00963297]
[1744384097741,12.16251,1557.3,1557.0,0.00963297]
[1744384097941,1.28476,1557.5,1557.0,8.95393297]
[1744384098143,1.28483,1557.4,1557.1,4.8531]
[1744384098341,6.13051,1557.3,1557.1,9.1768]
[1744384098542,6.4192,1557.7,1557.1,12.3846]
[1744384098743,1.28483,1557.4,1557.2,4.8531]
[1744384098945,6.13037,1557.5,1557.2,4.8531]
[1744384099249,4.8456,1557.5,1557.3,1.28486]
[1744384099452,4.8456,1557.5,1557.4,5.1134]
[1744384099843,6.13032,1557.5,1557.4,5.1134]
[1744384100047,4.8456,1557.5,1557.2,5.1134]
[1744384100245,4.8429,1557.4,1557.2,6.38530921]
[1744384100452,4.8429,1557.4,1557.3,1.28489]
[1744384100951,4.8429,1557.4,1557.2,1.28493]
[1744384101150,4.8429,1557.4,1557.2,1.28492]
[1744384101352,1.28494,1557.3,1557.1,7.5315]
[1744384101547,1.28497,1557.2,1557.1,7.5315]
[1744384101754,1.28505,1557.1,1557.0,4.10083297]
[1744384102646,6.12789,1557.2,1557.0,4.10083297]
[1744384102851,1.28505,1557.1,1557.0,4.10083297]
[1744384103051,6.12125,1557.1,1557.0,0.00963297]
[1744384105359,4.8362,1557.1,1557.0,0.00963297]
[1744384105550,4.8362,1557.1,1557.0,6.03926297]